bitfinex/quotes_BTCUSD_20241116
["timestamp","ask_amount","ask_price","bid_price","bid_amount"]
[1731739312760,0.0017158,91184.0,91183.0,0.35049592]
[1731739312973,0.0017158,91184.0,91183.0,0.26873246]
[1731739313449,0.0017158,91184.0,91183.0,0.44878253]
[1731739313682,0.0017158,91184.0,91183.0,0.35249592]
[1731739313906,0.0017158,91184.0,91183.0,0.35049592]
[1731739314161,0.16471661,91207.0,91183.0,0.35049592]
[1731739314162,0.16471661,91207.0,91188.0,0.25]
[1731739314402,0.16471661,91207.0,91206.0,0.19140446]
[1731739314666,0.0475,91225.0,91206.0,0.19140446]
[1731739314667,0.005,91221.0,91207.0,0.219281]
[1731739314892,0.005,91221.0,91220.0,0.19138846]
[1731739316416,0.001715,91229.0,91220.0,0.08176346]
[1731739316417,0.005,91223.0,91220.0,0.08176346]
[1731739316634,0.005,91223.0,91222.0,0.19138546]
[1731739316849,0.005,91223.0,91222.0,0.109622]
[1731739317302,0.005,91227.0,91225.0,0.109619]
[1731739317744,0.02395937,91226.0,91225.0,0.109619]
[1731739318373,0.01510348,91226.0,91225.0,0.109619]
[1731739321546,0.005,91224.0,91223.0,0.109621]
[1731739322010,0.01246343,91224.0,91223.0,0.109621]
[1731739322510,0.00746343,91224.0,91223.0,0.109621]
[1731739322952,0.01681848,91226.0,91225.0,0.109619]
[1731739325537,0.02181848,91226.0,91225.0,0.109619]
[1731739325774,0.01681848,91226.0,91225.0,0.109619]
[1731739326002,0.02927991,91226.0,91225.0,0.109619]
[1731739326227,0.02181848,91226.0,91225.0,0.109619]
[1731739326710,0.02927991,91226.0,91225.0,0.109619]
[1731739327164,0.02181848,91226.0,91225.0,0.109619]
[1731739328993,0.1339,91224.0,91223.0,0.109621]
[1731739329225,0.14135978,91224.0,91223.0,0.109621]
[1731739329905,0.005,91217.0,91216.0,0.109629]
[1731739330158,0.01,91217.0,91216.0,0.109629]
[1731739330673,0.01,91214.0,91206.0,0.219282]
[1731739330903,0.005,91208.0,91206.0,0.219282]
[1731739331142,0.005,91208.0,91207.0,0.10964]
[1731739333803,0.01243652,91208.0,91207.0,0.10964]
[1731739335116,0.00743652,91208.0,91207.0,0.10964]
[1731739335326,0.00743652,91208.0,91207.0,0.23409116]
[1731739335544,0.005,91219.0,91218.0,0.109627]
[1731739335990,0.01244562,91219.0,91218.0,0.109627]
[1731739336195,0.005,91220.0,91219.0,0.109626]
[1731739336613,0.0834,91224.0,91219.0,0.109626]
[1731739336614,0.005,91222.0,91221.0,0.109623]
[1731739339481,0.0834,91224.0,91223.0,0.109621]
[1731739345100,0.0851148,91224.0,91223.0,0.109621]
[1731739346767,0.0901148,91224.0,91223.0,0.109621]
[1731739347185,0.005,91212.0,91211.0,0.109635]
[1731739347615,0.01150423,91212.0,91211.0,0.109635]
[1731739347842,0.005,91212.0,91211.0,0.109635]
[1731739348499,0.005,91212.0,91211.0,0.15359853]
[1731739349830,0.005,91214.0,91213.0,0.109633]
[1731739350715,0.005,91214.0,91211.0,0.26323353]
[1731739350933,0.005,91214.0,91213.0,0.109633]
[1731739353802,0.005,91214.0,91209.0,0.219274]
[1731739354015,0.005,91214.0,91211.0,0.21927]
[1731739354222,0.0709,91216.0,91213.0,0.219265]
[1731739354456,0.0709,91216.0,91215.0,0.109631]
[1731739354903,0.0709,91216.0,91211.0,0.21927]
[1731739355108,0.005,91212.0,91209.0,0.04527123]
[1731739355318,0.0475,91211.0,91209.0,0.04527123]
[1731739355529,0.0475,91211.0,91208.0,0.109639]
[1731739355744,0.0475,91211.0,91208.0,0.109638]
[1731739355958,0.0475,91211.0,91196.0,0.219307]
[1731739356417,0.005,91202.0,91201.0,0.109647]
[1731739356631,0.005,91202.0,91199.0,0.109649]
[1731739357296,0.005,91202.0,91200.0,0.109648]
[1731739357297,0.0803,91201.0,91200.0,0.109648]
[1731739357522,0.0803,91201.0,91197.0,0.219305]
[1731739357737,0.0803,91201.0,91199.0,0.109649]
[1731739358166,0.0803,91201.0,91196.0,0.04490099]
[1731739358399,0.0803,91201.0,91200.0,0.109649]
[1731739358613,0.005,91200.0,91195.0,0.219309]
[1731739358816,0.005,91200.0,91199.0,0.10965]
[1731739358971,0.005,91200.0,91194.0,0.04502557]
[1731739359172,0.005,91200.0,91184.0,0.31838556]
[1731739359173,0.005,91196.0,91184.0,0.09905156]
[1731739359396,0.005,91196.0,91195.0,0.109655]
[1731739360813,0.0803,91201.0,91184.0,0.14404153]
[1731739360814,0.005,91200.0,91199.0,0.10965]
[1731739363588,0.005,91200.0,91199.0,0.15337056]
[1731739371612,0.00376784,91200.0,91199.0,0.15337056]
[1731739373479,0.00376784,91200.0,91199.0,0.10965]
[1731739377552,0.0465,91199.0,91195.0,0.04558082]
[1731739377986,0.05026784,91199.0,91195.0,0.04558082]
[1731739377991,0.00646411,91198.0,91196.0,0.109653]
[1731739378435,0.00646411,91198.0,91184.0,0.0008574]
[1731739378654,0.05026784,91199.0,91197.0,0.109652]
[1731739378881,0.05026784,91199.0,91196.0,0.109653]
[1731739379102,0.00646411,91198.0,91197.0,0.109652]
[1731739379306,0.05026784,91199.0,91197.0,0.109652]
[1731739379510,0.05026784,91199.0,91198.0,0.109651]
[1731739380868,0.05026784,91199.0,91196.0,0.109653]
[1731739381101,0.05026784,91199.0,91197.0,0.109652]
[1731739381328,0.00830503,91198.0,91197.0,0.109652]
[1731739381558,0.05026784,91199.0,91197.0,0.109652]
[1731739382033,0.00830503,91198.0,91197.0,0.109652]
[1731739382239,0.05026784,91199.0,91197.0,0.109652]
[1731739382456,0.00830503,91198.0,91197.0,0.109652]
[1731739382866,0.05026784,91199.0,91197.0,0.109652]
[1731739383284,0.00830503,91198.0,91197.0,0.109652]
[1731739383500,0.05026784,91199.0,91197.0,0.109652]
[1731739383920,0.00830503,91198.0,91197.0,0.109652]
[1731739384349,0.05026784,91199.0,91197.0,0.109652]
[1731739384778,0.00830503,91198.0,91197.0,0.109652]
[1731739385236,0.05026784,91199.0,91198.0,0.109651]
[1731739387675,0.00376784,91199.0,91198.0,0.109651]
[1731739388139,0.00363092,91199.0,91198.0,0.109651]
[1731739390567,0.00363092,91212.0,91198.0,0.0866]
[1731739390798,0.16834753,91210.0,91207.0,0.30101944]
[1731739391012,0.16834753,91210.0,91209.0,0.109638]
[1731739391223,0.00363092,91210.0,91209.0,0.109638]
[1731739391665,0.08283092,91210.0,91209.0,0.109638]
[1731739392295,0.08283092,91210.0,91203.0,0.023]
[1731739392944,0.08283092,91210.0,91209.0,0.109638]
[1731739394482,0.00363092,91200.0,91199.0,0.219298]
[1731739394700,0.00363092,91200.0,91199.0,0.10965]
[1731739394701,0.08613092,91200.0,91199.0,0.10965]
[1731739395146,0.13553092,91200.0,91199.0,0.10965]
[1731739396484,0.13553092,91200.0,91197.0,0.0008573]
[1731739396950,0.13553092,91200.0,91197.0,0.1105093]
[1731739397175,0.13553092,91200.0,91199.0,0.10965]
[1731739397803,0.13553092,91200.0,91197.0,0.0008573]
[1731739398009,0.13553092,91200.0,91198.0,0.109651]
[1731739398433,0.00831403,91199.0,91198.0,0.109651]
[1731739399093,0.00363092,91198.0,91197.0,0.109652]
[1731739399526,0.01194396,91198.0,91197.0,0.109652]
[1731739400153,0.00223092,91198.0,91197.0,0.109652]
[1731739400582,0.01054396,91198.0,91197.0,0.109652]
[1731739400910,0.00113092,91198.0,91197.0,0.109652]
[1731739400966,0.00944396,91198.0,91197.0,0.109652]
[1731739401168,0.00113092,91198.0,91197.0,0.109652]
[1731739403957,0.00113092,91205.0,91194.0,0.08174044]
[1731739404087,0.0763,91206.0,91205.0,0.109643]
[1731739404295,0.0751,91206.0,91205.0,0.109643]
[1731739404949,0.07623092,91206.0,91205.0,0.109643]
[1731739405145,0.0742,91206.0,91205.0,0.109643]
[1731739405981,0.073,91206.0,91205.0,0.109643]
[1731739406193,0.0017146,91210.0,91209.0,0.109638]
[1731739408335,0.0017146,91210.0,91209.0,0.15379749]
[1731739409428,0.0017146,91210.0,91209.0,0.17679749]
[1731739411318,0.0017146,91210.0,91209.0,0.17635963]
[1731739414070,0.0017146,91210.0,91209.0,0.2748858]
[1731739415419,0.0017146,91210.0,91209.0,0.17635963]
[1731739416119,0.0017146,91210.0,91209.0,0.2748858]
[1731739416360,0.0017146,91210.0,91209.0,0.17635963]
[1731739417048,0.0017146,91210.0,91209.0,0.27475083]
[1731739417256,0.0017146,91210.0,91209.0,0.17635963]
[1731739418933,0.0017146,91210.0,91209.0,0.23032871]
[1731739419195,0.0017146,91210.0,91209.0,0.52727806]
[1731739419419,0.0017146,91210.0,91209.0,0.37969126]
[1731739419647,0.0017146,91210.0,91209.0,0.52727806]
[1731739421058,0.0017146,91210.0,91209.0,0.52813546]
[1731739421308,0.0017146,91210.0,91209.0,0.38054866]
[1731739421535,0.0017146,91210.0,91209.0,0.62633521]
[1731739422284,0.0017146,91210.0,91209.0,0.38054866]
[1731739424019,0.0017146,91210.0,91209.0,0.57708635]
[1731739424229,0.0017146,91210.0,91209.0,0.57705761]
[1731739426404,0.0017146,91210.0,91209.0,0.38054866]
[1731739427108,0.0017146,91210.0,91209.0,0.34024866]
[1731739428679,0.0017146,91210.0,91209.0,0.48757384]
[1731739429110,0.0017146,91210.0,91209.0,0.34024866]
[1731739429562,0.0017146,91210.0,91209.0,0.48756557]
[1731739429797,0.0017146,91210.0,91209.0,0.34024866]
[1731739430223,0.0017146,91210.0,91209.0,0.4875653]
[1731739430678,0.0017146,91210.0,91209.0,0.4424653]
[1731739432391,0.0017146,91210.0,91209.0,0.52420574]
[1731739432603,0.0017146,91210.0,91209.0,0.3768891]
[1731739440347,0.0017146,91210.0,91209.0,0.29514866]
[1731739440553,0.0498146,91210.0,91209.0,0.29514866]
[1731739441203,0.0017146,91210.0,91209.0,0.29514866]
[1731739446343,0.0017146,91210.0,91209.0,0.39339854]
[1731739447384,0.0017146,91210.0,91209.0,0.29514866]
[1731739447589,0.0017146,91210.0,91209.0,0.32772902]
[1731739448028,0.0017146,91210.0,91209.0,0.39343876]
[1731739448254,0.0017146,91210.0,91209.0,0.32772944]
[1731739448910,0.0017146,91210.0,91209.0,0.52422921]
[1731739449334,0.0017146,91210.0,91209.0,0.52436093]
[1731739449998,0.0017146,91210.0,91209.0,0.32772944]
[1731739451294,0.0017146,91210.0,91209.0,0.37154244]
[1731739453345,0.0017146,91210.0,91209.0,0.66648968]
[1731739453563,0.0017146,91210.0,91209.0,0.66848968]
[1731739454410,0.16471661,91221.0,91209.0,0.66848968]
[1731739454411,0.16471661,91221.0,91220.0,0.54997496]
[1731739454625,0.16471661,91221.0,91220.0,0.5008153]
[1731739454826,0.0017148,91222.0,91221.0,0.023]
[1731739455043,0.0017148,91222.0,91221.0,0.41111469]
[1731739455263,0.0017148,91222.0,91221.0,0.132623]
[1731739455699,0.0017148,91222.0,91221.0,0.16521024]
[1731739456125,0.0763,91228.0,91221.0,0.05558724]
[1731739456362,0.0763,91228.0,91220.0,0.33560952]
[1731739456363,0.0763,91228.0,91225.0,0.36194587]
[1731739457005,0.0763,91228.0,91225.0,0.41114134]
[1731739457230,0.01501848,91226.0,91225.0,0.41501042]
[1731739457435,0.01501848,91226.0,91225.0,0.41498497]
[1731739457859,0.01501848,91226.0,91225.0,0.21822852]
[1731739458302,0.01501848,91226.0,91225.0,0.4149849]
[1731739458724,0.01501848,91226.0,91225.0,0.41498103]
[1731739458957,0.01501848,91226.0,91225.0,0.21822852]
[1731739459159,0.01501848,91226.0,91225.0,0.41498103]
[1731739461399,0.01501848,91226.0,91225.0,0.21822852]
[1731739461615,0.01501848,91226.0,91225.0,0.17055699]
[1731739461836,0.01501848,91226.0,91225.0,0.25229743]
[1731739462058,0.01501848,91226.0,91225.0,0.36191643]
[1731739463365,0.01501848,91226.0,91225.0,0.21435944]
[1731739463580,0.01501848,91226.0,91225.0,0.36192329]
[1731739464463,0.01501848,91226.0,91225.0,0.21435944]
[1731739464916,0.01501848,91226.0,91225.0,0.36192329]
[1731739465823,0.01501848,91226.0,91225.0,0.47098584]
[1731739466873,0.01501848,91226.0,91225.0,0.32342199]
[1731739467569,0.01501848,91226.0,91225.0,0.47098584]
[1731739468067,0.01501848,91226.0,91225.0,0.32342199]
[1731739468285,0.01501848,91226.0,91225.0,0.38922391]
[1731739468509,0.01501848,91226.0,91225.0,0.39008111]
[1731739468727,0.01501848,91226.0,91225.0,0.24253875]
[1731739469837,0.01419468,91226.0,91225.0,0.39008111]
[1731739470302,0.01419468,91226.0,91225.0,0.24253875]
[1731739470544,0.01419468,91226.0,91225.0,0.39008111]
[1731739470779,0.01419468,91226.0,91225.0,0.39508111]
[1731739470982,0.01419468,91226.0,91225.0,0.4442619]
[1731739471190,0.01419468,91226.0,91225.0,0.24753875]
[1731739471394,0.01419468,91226.0,91225.0,0.43920051]
[1731739471610,0.01419468,91226.0,91225.0,0.24753875]
[1731739471862,0.01419468,91226.0,91225.0,0.27508324]
[1731739472296,0.01419468,91226.0,91225.0,0.35682368]
[1731739472532,0.01419468,91226.0,91225.0,0.36182368]
[1731739472735,0.01419468,91226.0,91225.0,0.35682368]
[1731739473760,0.01419468,91226.0,91225.0,0.36182368]
[1731739473971,0.01419468,91226.0,91225.0,0.35682368]
[1731739474178,0.01419468,91226.0,91225.0,0.36182368]
[1731739474385,0.01419468,91226.0,91225.0,0.32927919]
[1731739474594,0.00344086,91226.0,91225.0,0.32927919]
[1731739475004,0.00344086,91226.0,91225.0,0.57506924]
[1731739475211,0.00344086,91226.0,91225.0,0.32927919]
[1731739478856,0.0825,91235.0,91228.0,0.109615]
[1731739479066,0.0825,91235.0,91228.0,0.24167755]
[1731739483722,0.0825,91235.0,91228.0,0.38913943]
[1731739485119,0.0825,91235.0,91228.0,0.47087189]
[1731739485320,0.0825,91235.0,91228.0,0.27425604]
[1731739487033,0.0825,91235.0,91228.0,0.47087954]
[1731739487258,0.0825,91235.0,91228.0,0.27425604]
[1731739488298,0.0825,91235.0,91228.0,0.47088942]
[1731739489163,0.0825,91235.0,91228.0,0.27425604]
[1731739489371,0.0825,91235.0,91228.0,0.47088942]
[1731739489570,0.0825,91235.0,91228.0,0.27425604]
[1731739490223,0.0825,91235.0,91228.0,0.47092364]
[1731739490462,0.0825,91235.0,91228.0,0.27425604]
[1731739492251,0.0825,91235.0,91228.0,0.52014893]
[1731739492657,0.0825,91235.0,91228.0,0.27425604]
[1731739493086,0.0825,91235.0,91228.0,0.52014893]
[1731739493291,0.0825,91235.0,91228.0,0.27425604]
[1731739493503,0.0825,91235.0,91228.0,0.52022811]
[1731739493947,0.0825,91235.0,91228.0,0.27425604]
[1731739499503,0.0825,91235.0,91226.0,0.18634892]
[1731739499717,0.0825,91235.0,91228.0,0.1969159]
[1731739500177,0.0825,91235.0,91228.0,0.3065309]
[1731739500410,0.0825,91235.0,91228.0,0.109615]
[1731739500623,0.0825,91235.0,91234.0,0.19134844]
[1731739501879,0.0825,91235.0,91234.0,0.21434844]
[1731739506325,0.0825,91235.0,91234.0,0.132608]
[1731739506567,0.0825,91235.0,91234.0,0.23109837]
[1731739506568,0.13,91235.0,91234.0,0.23109837]
[1731739506792,0.13,91235.0,91234.0,0.132608]
[1731739507028,0.13,91235.0,91234.0,0.109608]
[1731739508316,0.13,91235.0,91234.0,0.20809837]
[1731739509212,0.13,91235.0,91234.0,0.25239244]
[1731739509446,0.13,91235.0,91234.0,0.23564251]
[1731739510155,0.13,91235.0,91234.0,0.48564251]
[1731739510377,0.0825,91235.0,91234.0,0.48564251]
[1731739510605,0.0825,91235.0,91234.0,0.51797982]
[1731739510824,0.0825,91235.0,91234.0,0.76421161]
[1731739511050,0.0825,91235.0,91234.0,0.51797982]
[1731739512829,0.0017152,91237.0,91235.0,0.023]
[1731739513051,0.0017152,91237.0,91235.0,0.16494431]
[1731739513949,0.0016752,91237.0,91236.0,0.005]
[1731739514168,0.0016752,91237.0,91236.0,0.25600486]
[1731739516082,0.0016752,91237.0,91236.0,0.57445076]
[1731739516285,0.0016752,91237.0,91236.0,0.27900486]
[1731739517797,0.0016752,91237.0,91236.0,0.57420777]
[1731739518435,0.0016752,91237.0,91236.0,0.27900486]
[1731739519586,0.1247752,91237.0,91236.0,0.14194231]
[1731739520019,0.1247752,91237.0,91236.0,0.30636422]
[1731739520464,0.1247752,91237.0,91236.0,0.25717453]
[1731739520669,0.1247752,91237.0,91236.0,0.109605]
[1731739526580,0.13314072,91237.0,91236.0,0.109605]
[1731739526812,0.1247752,91237.0,91236.0,0.109605]
[1731739527034,0.1247752,91237.0,91236.0,0.1104621]
[1731739531836,0.1247752,91237.0,91236.0,0.1334621]
[1731739536670,0.0016752,91237.0,91236.0,0.21520254]
[1731739536869,0.001715,91239.0,91236.0,0.21520254]
[1731739536870,0.0005002,91239.0,91238.0,0.137603]
[1731739537048,0.0005002,91239.0,91238.0,0.24666555]
[1731739537737,0.0005002,91239.0,91238.0,0.32840599]
[1731739537953,0.0005002,91239.0,91238.0,0.36068477]
[1731739538157,0.0005002,91239.0,91238.0,0.27894433]
[1731739538567,0.16643141,91251.0,91249.0,0.46433044]
[1731739538774,0.16643141,91251.0,91249.0,0.56267218]
[1731739538991,0.01010257,91250.0,91249.0,0.56267218]
[1731739539207,0.0017148,91250.0,91249.0,0.56267218]
[1731739539849,0.0017148,91250.0,91249.0,0.48093174]
[1731739540057,0.0017148,91250.0,91249.0,0.38259]
[1731739540718,0.0017148,91250.0,91249.0,0.42623131]
[1731739542695,0.0017148,91250.0,91249.0,0.50797175]
[1731739542936,0.1293,91261.0,91250.0,0.005]
[1731739543138,0.0806,91261.0,91260.0,0.21431744]
[1731739544460,0.0806,91261.0,91259.0,0.08174044]
[1731739544676,0.0806,91261.0,91260.0,0.109577]
[1731739547747,0.0806,91261.0,91260.0,0.15480688]
[1731739550604,0.0806,91261.0,91260.0,0.40480688]
[1731739550829,0.0823138,91261.0,91260.0,0.40480688]
[1731739553348,0.0017138,91261.0,91260.0,0.61860987]
[1731739554059,0.0017138,91261.0,91260.0,0.53686943]
[1731739554510,0.0017138,91261.0,91260.0,0.54186943]
[1731739554750,0.0017138,91261.0,91260.0,0.62360987]
[1731739554968,0.0017138,91261.0,91260.0,0.54186943]
[1731739555426,0.0017138,91261.0,91260.0,0.77078421]
[1731739555881,0.0017138,91261.0,91260.0,0.77078354]
[1731739556129,0.0017138,91261.0,91260.0,0.62360987]
[1731739556340,0.0017144,91273.0,91269.0,0.21430644]
[1731739556554,0.0017144,91273.0,91269.0,0.32836899]
[1731739556767,0.01009525,91270.0,91269.0,0.32836899]
[1731739556974,0.001715,91270.0,91269.0,0.32836899]
[1731739557192,0.07515075,91275.0,91274.0,0.38256]
[1731739557414,0.07515075,91275.0,91274.0,0.46430044]
[1731739558693,0.0497144,91281.0,91275.0,0.132559]
[1731739558922,0.0017144,91281.0,91275.0,0.132559]
[1731739559348,0.0017144,91281.0,91275.0,0.24162155]
[1731739561275,0.0017144,91281.0,91275.0,0.32336199]
[1731739561963,0.0017144,91281.0,91275.0,0.24162155]
[1731739562196,0.0017144,91281.0,91275.0,0.32336199]
[1731739566664,0.0017144,91281.0,91278.0,0.109555]
[1731739566857,0.0017144,91281.0,91280.0,0.21929344]
[1731739567063,0.0017144,91281.0,91280.0,0.32835599]
[1731739567331,0.0017144,91281.0,91280.0,0.36473185]
[1731739567545,0.16471661,91292.0,91285.0,0.46428744]
[1731739567764,0.16471661,91292.0,91285.0,0.57334999]
[1731739567967,0.16471661,91292.0,91285.0,0.60972585]
[1731739568172,0.0754,91294.0,91293.0,0.109537]
[1731739568390,0.0017146,91302.0,91301.0,0.132527]
[1731739568391,0.0794146,91302.0,91301.0,0.132527]
[1731739569252,0.0794146,91302.0,91301.0,0.16890286]
[1731739571030,0.0794146,91302.0,91301.0,0.132527]
[1731739572361,0.0794146,91302.0,91301.0,0.17765412]
[1731739573891,0.0017146,91302.0,91301.0,0.25939456]
[1731739574975,0.0469146,91302.0,91301.0,0.25939456]
[1731739576471,0.04621658,91302.0,91301.0,0.25939456]
[1731739578395,0.04621658,91302.0,91301.0,0.15465412]
[1731739578396,0.12421658,91302.0,91301.0,0.15465412]
[1731739578831,0.1317855,91302.0,91301.0,0.15465412]
[1731739579284,0.1317855,91302.0,91287.0,0.043778]
[1731739579285,0.005,91293.0,91287.0,0.043778]
[1731739579507,0.1282,91293.0,91292.0,0.109538]
[1731739580654,0.1232,91293.0,91292.0,0.109538]
[1731739584755,0.1232,91293.0,91292.0,0.1103951]
[1731739584978,0.078,91293.0,91292.0,0.5076805]
[1731739585199,0.078,91300.0,91299.0,0.10953]
[1731739585672,0.08554625,91300.0,91299.0,0.13253]
[1731739586534,0.078,91300.0,91299.0,0.13253]
[1731739587464,0.078,91300.0,91299.0,0.17587455]
[1731739587912,0.078,91300.0,91299.0,0.15287455]
[1731739593436,0.00101658,91302.0,91301.0,0.109527]
[1731739593667,0.00101658,91302.0,91301.0,0.132527]
[1731739595262,0.00101658,91302.0,91301.0,0.24158955]
[1731739596755,0.077,91312.0,91311.0,0.25]
[1731739597014,0.16471661,91315.0,91314.0,0.132512]
[1731739597457,0.00757573,91315.0,91314.0,0.132512]
[1731739597881,0.0017142,91318.0,91317.0,0.132508]
[1731739599733,0.0017142,91318.0,91317.0,0.20177642]
[1731739601035,0.0017142,91318.0,91317.0,0.29976893]
[1731739601498,0.0017142,91318.0,91317.0,0.20177642]
[1731739601701,0.0017142,91318.0,91317.0,0.29978189]
[1731739602134,0.0017142,91318.0,91317.0,0.29978098]
[1731739602355,0.0017142,91318.0,91317.0,0.29978183]
[1731739602565,0.0017142,91318.0,91317.0,0.40883887]
[1731739602777,0.0017142,91318.0,91317.0,0.45784709]
[1731739602962,0.0017142,91318.0,91317.0,0.31083897]
[1731739603646,0.0017142,91318.0,91317.0,0.27515583]
[1731739603880,0.0017142,91318.0,91317.0,0.24157055]
[1731739604082,0.0017142,91318.0,91317.0,0.50268333]
[1731739604287,0.0017142,91318.0,91317.0,0.35573433]
[1731739605402,0.0017142,91318.0,91317.0,0.52303742]
[1731739605645,0.0017142,91318.0,91317.0,0.39290518]
[1731739606492,0.0017142,91318.0,91317.0,0.36073433]
[1731739607537,0.0017142,91318.0,91317.0,0.39288601]
[1731739608392,0.0017142,91318.0,91317.0,0.63774647]
[1731739608622,0.0017142,91318.0,91317.0,0.36073433]
[1731739610179,0.0017142,91318.0,91317.0,0.55642544]
[1731739610623,0.0017142,91318.0,91317.0,0.29146591]
[1731739611694,0.0017142,91318.0,91317.0,0.32714905]
[1731739611914,0.0017142,91318.0,91317.0,0.32505119]
[1731739612638,0.0017142,91318.0,91317.0,0.29146591]
[1731739613922,0.0017142,91318.0,91317.0,0.48715702]
[1731739614376,0.0017142,91318.0,91317.0,0.48710594]
[1731739614585,0.0017142,91318.0,91317.0,0.29146591]
[1731739615884,0.077,91333.0,91320.0,0.2337904]
[1731739616092,0.077,91333.0,91327.0,0.382496]
[1731739616308,0.077,91333.0,91327.0,0.49155855]
[1731739620028,0.077,91333.0,91327.0,0.61584395]
[1731739621359,0.077,91333.0,91327.0,0.66025314]
[1731739622872,0.077,91333.0,91327.0,0.61743777]
[1731739623502,0.077,91333.0,91327.0,0.65102305]
[1731739624575,0.077,91333.0,91327.0,0.61743777]
[1731739624791,0.077,91333.0,91327.0,0.65102305]
[1731739625005,0.1233,91341.0,91340.0,0.25]
[1731739625253,0.0457,91348.0,91341.0,0.132479]
[1731739625467,0.0457,91348.0,91341.0,0.24154155]
[1731739625669,0.0457,91348.0,91341.0,0.27512683]
[1731739628051,0.0457,91348.0,91341.0,0.24154155]
[1731739628939,0.0457,91348.0,91341.0,0.36564156]
[1731739631096,0.0457,91348.0,91341.0,0.40946957]
[1731739631575,0.0457,91348.0,91341.0,0.40295284]
[1731739640631,0.0457,91348.0,91341.0,0.50068438]
[1731739641072,0.0457,91348.0,91341.0,0.37658437]
[1731739641492,0.0457,91348.0,91341.0,0.31105782]
[1731739642146,0.0457,91348.0,91341.0,0.37674302]
[1731739642600,0.0457,91348.0,91341.0,0.42545014]
[1731739642815,0.0457,91348.0,91341.0,0.37676698]
[1731739643320,0.0457,91348.0,91341.0,0.27885283]
[1731739643733,0.0457,91348.0,91341.0,0.37677575]
[1731739643938,0.0457,91348.0,91341.0,0.37680378]
[1731739644113,0.0457,91348.0,91341.0,0.27885283]
[1731739644838,0.16471661,91347.0,91341.0,0.37682766]
[1731739645049,0.133214,91342.0,91341.0,0.14679028]
[1731739645931,0.14536842,91342.0,91341.0,0.14679028]
[1731739646373,0.15036842,91342.0,91341.0,0.14679028]
[1731739655382,0.14916842,91342.0,91341.0,0.14764698]
[1731739656664,0.14796842,91342.0,91341.0,0.14764698]
[1731739657973,0.14796842,91342.0,91341.0,0.0008567]
[1731739657974,0.36650897,91342.0,91341.0,0.0008567]
[1731739658181,0.114495,91328.0,91327.0,0.0008569]
[1731739658448,0.24378956,91328.0,91327.0,0.0008569]
[1731739658662,0.36555302,91328.0,91327.0,0.0008569]
[1731739658883,0.36627777,91328.0,91327.0,0.0008569]
[1731739659768,0.44627777,91328.0,91327.0,0.0008569]
[1731739659990,0.0478,91325.0,91302.0,0.0238571]
[1731739660208,0.1278,91323.0,91317.0,0.16471661]
[1731739660410,0.0478,91320.0,91318.0,0.109506]
[1731739660611,0.08841675,91319.0,91318.0,0.109506]
[1731739660830,0.13621675,91319.0,91318.0,0.109506]
[1731739662158,0.13621675,91319.0,91318.0,0.15476397]
[1731739662570,0.1278,91319.0,91318.0,0.15476397]
[1731739662999,0.13621675,91319.0,91318.0,0.15476397]
[1731739667239,0.13621675,91319.0,91318.0,0.15562067]
[1731739671602,0.14121675,91319.0,91318.0,0.0008567]
[1731739671811,0.2552793,91319.0,91318.0,0.0008567]
[1731739672031,0.3647853,91319.0,91318.0,0.0008567]
[1731739672719,0.2552793,91319.0,91318.0,0.0008567]
[1731739676249,0.3647853,91319.0,91318.0,0.0008567]
[1731739676698,0.3667853,91319.0,91318.0,0.0008567]
[1731739677538,0.3617853,91319.0,91318.0,0.0008567]
[1731739677941,0.3597853,91319.0,91318.0,0.0008567]
[1731739678089,0.2502793,91319.0,91318.0,0.0008567]
[1731739679075,0.3597853,91319.0,91318.0,0.0008567]
[1731739679654,0.2502793,91319.0,91318.0,0.0008567]
[1731739680102,0.3597853,91319.0,91318.0,0.0008567]
[1731739680514,0.3617853,91319.0,91318.0,0.0008567]
[1731739681225,0.00841675,91319.0,91318.0,0.69889941]
[1731739681484,0.005,91336.0,91335.0,0.109487]
[1731739681923,0.01475441,91336.0,91335.0,0.109487]
[1731739682519,0.005,91336.0,91335.0,0.109487]
[1731739685634,0.0881,91336.0,91335.0,0.109487]
[1731739689959,0.005,91336.0,91335.0,0.109487]
[1731739690581,0.0067138,91336.0,91335.0,0.109487]
[1731739694874,0.1298138,91336.0,91335.0,0.109487]
[1731739695390,0.13964238,91336.0,91335.0,0.109487]
[1731739696065,0.13964238,91336.0,91334.0,0.04501725]
[1731739696066,0.005,91319.0,91318.0,0.1103637]
[1731739696304,0.1281,91319.0,91318.0,0.1103637]
[1731739696502,0.23716255,91319.0,91318.0,0.1103637]
[1731739696709,0.24695466,91319.0,91318.0,0.1103637]
[1731739700990,0.36146066,91319.0,91318.0,0.0008567]
[1731739701226,0.36346066,91319.0,91318.0,0.0008567]
[1731739701695,0.36846066,91319.0,91318.0,0.0008567]
[1731739706222,0.24695466,91319.0,91318.0,0.0008567]
[1731739706430,0.24195466,91319.0,91318.0,0.1103637]
[1731739706685,0.01479211,91319.0,91318.0,0.1103637]
[1731739707107,0.005,91319.0,91318.0,0.1103637]
[1731739708779,0.0755,91326.0,91325.0,0.109499]
[1731739709038,0.005,91326.0,91325.0,0.109499]
[1731739709221,0.005,91326.0,91318.0,0.0008567]
[1731739709222,0.005,91328.0,91327.0,0.109496]
[1731739710679,0.005,91332.0,91331.0,0.109491]
[1731739711092,0.01487321,91332.0,91331.0,0.109491]
[1731739711735,0.005,91332.0,91331.0,0.109491]
[1731739726214,0.006715,91332.0,91331.0,0.109491]
[1731739755960,0.006715,91332.0,91331.0,0.108955]
[1731739758903,0.006715,91332.0,91331.0,0.20730798]
[1731739759133,0.006715,91332.0,91331.0,0.108955]
[1731739762413,0.044915,91334.0,91333.0,0.109489]
[1731739766770,0.0017138,91336.0,91335.0,0.109487]
[1731739768310,0.0017138,91336.0,91335.0,0.25686054]
[1731739768761,0.0017138,91336.0,91335.0,0.25685784]
[1731739769194,0.0017138,91336.0,91335.0,0.25683211]
[1731739771060,0.0017138,91336.0,91335.0,0.109487]
[1731739776142,0.12453611,91350.0,91349.0,0.10947]
[1731739776389,0.1344686,91350.0,91349.0,0.10947]
[1731739776632,0.00993249,91350.0,91349.0,0.10947]
[1731739776851,0.156267,91352.0,91343.0,0.218953]
[1731739777057,0.19096768,91344.0,91331.0,0.0008575]
[1731739777281,0.0475,91337.0,91336.0,0.109485]
[1731739777682,0.05742463,91337.0,91336.0,0.109485]